[Event "Titled Tuesday Blitz July 4 Late 2023"]
[White "Rastbod, Ali"]
[Black "Arnold, Ken"]
[WhiteFideId "12567477"]
[BlackFideId "2056836"]
[WhiteElo "2678"]
[BlackElo "2402"]
[Result "1-0"]
[Round "1"]
[TimeControl "180+2"]
[Date "2023.07.04"]
[WhiteClock "0:00:28"]
[BlackClock "0:00:10"]
[Board "87"]

1. e4 {[%clk 0:02:59]}  c6 {[%clk 0:02:59]} 2. Nc3 {[%clk 0:02:57]}  d5 {[%clk 0:02:57]} 3. Qe2 {[%clk 0:02:58]}  d4 {[%clk 0:02:55]} 4. Nd1 {[%clk 0:02:58]}  e5 {[%clk 0:02:53]} 5. g3 {[%clk 0:02:58]}  Nf6 {[%clk 0:02:52]} 6. Bg2 {[%clk 0:02:58]}  Bc5 {[%clk 0:02:50]} 7. d3 {[%clk 0:02:58]}  Bb4+ {[%clk 0:02:49]} 8. c3 {[%clk 0:02:57]}  dxc3 {[%clk 0:02:44]} 9. bxc3 {[%clk 0:02:58]}  Bc5 {[%clk 0:02:44]} 10. Nf3 {[%clk 0:02:57]}  Bg4 {[%clk 0:02:33]} 11. Ne3 {[%clk 0:02:49]}  Bxf3 {[%clk 0:02:31]} 12. Bxf3 {[%clk 0:02:50]}  Nbd7 {[%clk 0:02:29]} 13. Rb1 {[%clk 0:02:47]}  b6 {[%clk 0:02:19]} 14. Nf5 {[%clk 0:02:44]}  O-O {[%clk 0:02:12]} 15. d4 {[%clk 0:02:37]}  Be7 {[%clk 0:02:07]} 16. O-O {[%clk 0:02:31]}  Re8 {[%clk 0:02:07]} 17. Rd1 {[%clk 0:02:22]}  Qc7 {[%clk 0:01:57]} 18. Nxe7+ {[%clk 0:02:20]}  Rxe7 {[%clk 0:01:56]} 19. Ba3 {[%clk 0:02:21]}  Ree8 {[%clk 0:01:54]} 20. Qc2 {[%clk 0:02:12]}  c5 {[%clk 0:01:51]} 21. d5 {[%clk 0:01:59]}  Rf8 {[%clk 0:01:46]} 22. Bc1 {[%clk 0:01:56]}  Ne8 {[%clk 0:01:45]} 23. d6 {[%clk 0:01:48]}  Qc6 {[%clk 0:01:32]} 24. Qd3 {[%clk 0:01:48]}  Rd8 {[%clk 0:01:24]} 25. Bg5 {[%clk 0:01:43]}  Ndf6 {[%clk 0:01:19]} 26. Qa6 {[%clk 0:01:39]}  Rd7 {[%clk 0:01:14]} 27. Be2 {[%clk 0:01:38]}  Nxd6 {[%clk 0:01:08]} 28. Bxf6 {[%clk 0:01:35]}  gxf6 {[%clk 0:01:08]} 29. Bg4 {[%clk 0:01:02]}  f5 {[%clk 0:01:01]} 30. exf5 {[%clk 0:00:58]}  f6 {[%clk 0:00:55]} 31. Qe2 {[%clk 0:00:55]}  Rfd8 {[%clk 0:00:54]} 32. Bf3 {[%clk 0:00:49]}  e4 {[%clk 0:00:52]} 33. Bg2 {[%clk 0:00:49]}  Re7 {[%clk 0:00:41]} 34. Rb2 {[%clk 0:00:45]}  Rde8 {[%clk 0:00:36]} 35. Qg4+ {[%clk 0:00:42]}  Rg7 {[%clk 0:00:32]} 36. Qf4 {[%clk 0:00:42]}  Nc4 {[%clk 0:00:29]} 37. Re2 {[%clk 0:00:42]}  Rge7 {[%clk 0:00:25]} 38. Rde1 {[%clk 0:00:41]}  Qd6 {[%clk 0:00:23]} 39. Qh6 {[%clk 0:00:30]}  Qe5 {[%clk 0:00:15]} 40. Rxe4 {[%clk 0:00:28]}  Qd6 {[%clk 0:00:13]} 41. Rxe7 {[%clk 0:00:27]}  Rxe7 {[%clk 0:00:14]} 42. Rxe7 {[%clk 0:00:28]}  Qxe7 {[%clk 0:00:14]} 43. Bd5+ {[%clk 0:00:28]}  Kh8 {[%clk 0:00:10]} 44. Bxc4 {[%clk 0:00:28]} 1-0


[Site "https://www.chess.com"]

[Event "Titled Tuesday Blitz July 4 Late 2023"]
[White "Gabdushev, Ruslan"]
[Black "Katz, Alexander"]
[WhiteFideId "4137833"]
[BlackFideId "2039796"]
[WhiteElo "2392"]
[BlackElo "2659"]
[Result "0-1"]
[Round "1"]
[TimeControl "180+2"]
[Date "2023.07.04"]
[WhiteClock "0:00:00"]
[BlackClock "0:00:09"]
[Board "90"]

1. c4 {[%clk 0:02:58]}  e5 {[%clk 0:02:36]} 2. Nc3 {[%clk 0:02:56]}  Nf6 {[%clk 0:02:36]} 3. e4 {[%clk 0:02:56]}  Bc5 {[%clk 0:02:35]} 4. g3 {[%clk 0:02:53]}  Nc6 {[%clk 0:02:35]} 5. Bg2 {[%clk 0:02:52]}  d6 {[%clk 0:02:34]} 6. h3 {[%clk 0:02:51]}  O-O {[%clk 0:02:29]} 7. Nge2 {[%clk 0:02:51]}  Be6 {[%clk 0:02:26]} 8. d3 {[%clk 0:02:50]}  Nd4 {[%clk 0:02:23]} 9. O-O {[%clk 0:02:49]}  c6 {[%clk 0:02:23]} 10. Kh2 {[%clk 0:02:43]}  d5 {[%clk 0:02:23]} 11. b3 {[%clk 0:02:36]}  dxc4 {[%clk 0:02:16]} 12. dxc4 {[%clk 0:02:35]}  Qa5 {[%clk 0:02:10]} 13. Bb2 {[%clk 0:02:06]}  Rad8 {[%clk 0:02:07]} 14. Qc1 {[%clk 0:02:03]}  b5 {[%clk 0:01:28]} 15. cxb5 {[%clk 0:01:59]}  cxb5 {[%clk 0:01:23]} 16. Ng1 {[%clk 0:01:53]}  Bb4 {[%clk 0:01:18]} 17. Nce2 {[%clk 0:01:42]}  Rc8 {[%clk 0:01:11]} 18. Qg5 {[%clk 0:01:40]}  Nxe2 {[%clk 0:00:41]} 19. Nxe2 {[%clk 0:01:39]}  Nd7 {[%clk 0:00:42]} 20. Ng1 {[%clk 0:01:06]}  Rc2 {[%clk 0:00:40]} 21. Bc1 {[%clk 0:00:58]}  f6 {[%clk 0:00:37]} 22. Qe3 {[%clk 0:00:55]}  Bc5 {[%clk 0:00:30]} 23. Qd3 {[%clk 0:00:43]}  Rxa2 {[%clk 0:00:23]} 24. Rxa2 {[%clk 0:00:32]}  Qxa2 {[%clk 0:00:24]} 25. Qxb5 {[%clk 0:00:32]}  Qxb3 {[%clk 0:00:24]} 26. Qc6 {[%clk 0:00:31]}  Qb6 {[%clk 0:00:21]} 27. Qa4 {[%clk 0:00:29]}  Bd4 {[%clk 0:00:19]} 28. Ba3 {[%clk 0:00:26]}  Rc8 {[%clk 0:00:19]} 29. f4 {[%clk 0:00:20]}  Rc4 {[%clk 0:00:19]} 30. Qd1 {[%clk 0:00:18]}  h6 {[%clk 0:00:16]} 31. Ne2 {[%clk 0:00:13]}  Nc5 {[%clk 0:00:12]} 32. fxe5 {[%clk 0:00:11]}  Bxe5 {[%clk 0:00:12]} 33. Nf4 {[%clk 0:00:10]}  Bf7 {[%clk 0:00:12]} 34. Nd5 {[%clk 0:00:06]}  Qa5 {[%clk 0:00:10]} 35. Bxc5 {[%clk 0:00:04]}  Qxc5 {[%clk 0:00:10]} 36. Qf3 {[%clk 0:00:03]}  Rc2 {[%clk 0:00:10]} 37. Rb1 {[%clk 0:00:02]}  Kh7 {[%clk 0:00:08]} 38. Qf5+ {[%clk 0:00:00]}  Bg6 {[%clk 0:00:09]} 0-1


[Site "https://www.chess.com"]

[Event "Titled Tuesday Blitz July 4 Late 2023"]
[White "Aldokhin, Ivan"]
[Black "Bochnicka, Vladimir"]
[WhiteFideId "24115720"]
[BlackFideId "14943450"]
[WhiteElo "2656"]
[BlackElo "2388"]
[Result "1-0"]
[Round "1"]
[TimeControl "180+2"]
[Date "2023.07.04"]
[WhiteClock "0:00:17"]
[BlackClock "0:00:04"]
[Board "91"]

1. e4 {[%clk 0:02:59]}  c5 {[%clk 0:02:59]} 2. Nf3 {[%clk 0:02:59]}  Nc6 {[%clk 0:02:58]} 3. d4 {[%clk 0:03:00]}  cxd4 {[%clk 0:02:59]} 4. Nxd4 {[%clk 0:03:01]}  e5 {[%clk 0:02:58]} 5. Nb5 {[%clk 0:03:01]}  d6 {[%clk 0:02:57]} 6. N1c3 {[%clk 0:03:01]}  a6 {[%clk 0:02:57]} 7. Na3 {[%clk 0:03:01]}  Be7 {[%clk 0:02:57]} 8. Nc4 {[%clk 0:03:01]}  b5 {[%clk 0:02:56]} 9. Ne3 {[%clk 0:03:00]}  Nf6 {[%clk 0:02:56]} 10. Ned5 {[%clk 0:02:56]}  O-O {[%clk 0:02:53]} 11. Nxe7+ {[%clk 0:02:55]}  Qxe7 {[%clk 0:02:50]} 12. Bg5 {[%clk 0:02:55]}  Be6 {[%clk 0:02:22]} 13. Bd3 {[%clk 0:02:53]}  h6 {[%clk 0:02:21]} 14. Bh4 {[%clk 0:02:52]}  Rfd8 {[%clk 0:02:10]} 15. O-O {[%clk 0:02:47]}  Rac8 {[%clk 0:02:09]} 16. a3 {[%clk 0:02:22]}  Nd4 {[%clk 0:01:53]} 17. Nd5 {[%clk 0:02:15]}  Bxd5 {[%clk 0:01:52]} 18. exd5 {[%clk 0:02:16]}  g5 {[%clk 0:01:37]} 19. c3 {[%clk 0:02:07]}  gxh4 {[%clk 0:01:26]} 20. cxd4 {[%clk 0:02:08]}  Nxd5 {[%clk 0:01:22]} 21. Bf5 {[%clk 0:01:38]}  Rc7 {[%clk 0:01:17]} 22. Qf3 {[%clk 0:01:33]}  Nf4 {[%clk 0:01:14]} 23. dxe5 {[%clk 0:01:28]}  dxe5 {[%clk 0:01:13]} 24. Rfe1 {[%clk 0:01:27]}  Qf6 {[%clk 0:01:11]} 25. Be4 {[%clk 0:01:17]}  Kh8 {[%clk 0:01:08]} 26. Rad1 {[%clk 0:01:11]}  Rg8 {[%clk 0:01:08]} 27. g3 {[%clk 0:01:02]}  hxg3 {[%clk 0:00:54]} 28. hxg3 {[%clk 0:01:02]}  Qg7 {[%clk 0:00:44]} 29. Rd6 {[%clk 0:00:56]}  Ne6 {[%clk 0:00:27]} 30. Bd5 {[%clk 0:00:37]}  Ng5 {[%clk 0:00:15]} 31. Qh5 {[%clk 0:00:36]}  Kh7 {[%clk 0:00:12]} 32. Rxe5 {[%clk 0:00:30]}  Rc5 {[%clk 0:00:04]} 33. Rxg5 {[%clk 0:00:19]}  Qxg5 {[%clk 0:00:03]} 34. Qxf7+ {[%clk 0:00:19]}  Kh8 {[%clk 0:00:04]} 35. Rxh6+ {[%clk 0:00:17]}  Qxh6 {[%clk 0:00:04]} 36. Qxg8# {[%clk 0:00:17]} 1-0


[Site "https://www.chess.com"]

[Event "Titled Tuesday Blitz July 4 Late 2023"]
[White "Gombocz, Ferenc Jr."]
[Black "Andrej2004"]
[WhiteFideId "775029"]
[WhiteElo "2385"]
[BlackElo "2656"]
[Result "0-1"]
[Round "1"]
[TimeControl "180+2"]
[Date "2023.07.04"]
[WhiteClock "0:00:14"]
[BlackClock "0:01:09"]
[Board "92"]

1. c4 {[%clk 0:02:56]}  b6 {[%clk 0:02:58]} 2. Nc3 {[%clk 0:02:55]}  Bb7 {[%clk 0:02:59]} 3. e4 {[%clk 0:02:52]}  c5 {[%clk 0:02:57]} 4. Nge2 {[%clk 0:02:50]}  g6 {[%clk 0:02:57]} 5. d3 {[%clk 0:02:46]}  Bg7 {[%clk 0:02:57]} 6. g3 {[%clk 0:02:46]}  Nc6 {[%clk 0:02:57]} 7. Bg2 {[%clk 0:02:46]}  d6 {[%clk 0:02:56]} 8. O-O {[%clk 0:02:47]}  Nf6 {[%clk 0:02:55]} 9. h3 {[%clk 0:02:45]}  O-O {[%clk 0:02:55]} 10. Be3 {[%clk 0:02:45]}  e6 {[%clk 0:02:54]} 11. d4 {[%clk 0:02:45]}  cxd4 {[%clk 0:02:54]} 12. Nxd4 {[%clk 0:02:46]}  Ne5 {[%clk 0:02:52]} 13. b3 {[%clk 0:02:36]}  d5 {[%clk 0:02:50]} 14. f4 {[%clk 0:02:34]}  Nc6 {[%clk 0:02:47]} 15. e5 {[%clk 0:02:33]}  Nd7 {[%clk 0:02:27]} 16. Nxc6 {[%clk 0:02:30]}  Bxc6 {[%clk 0:02:27]} 17. cxd5 {[%clk 0:02:30]}  exd5 {[%clk 0:02:26]} 18. Bxd5 {[%clk 0:02:30]}  Bxd5 {[%clk 0:02:26]} 19. Qxd5 {[%clk 0:02:28]}  Rc8 {[%clk 0:02:26]} 20. Nb5 {[%clk 0:02:20]}  Nxe5 {[%clk 0:02:12]} 21. Qxd8 {[%clk 0:02:17]}  Rfxd8 {[%clk 0:02:12]} 22. fxe5 {[%clk 0:02:16]}  Bxe5 {[%clk 0:02:13]} 23. Rad1 {[%clk 0:02:04]}  a6 {[%clk 0:02:12]} 24. Nd4 {[%clk 0:01:46]}  Rc3 {[%clk 0:02:06]} 25. Bf2 {[%clk 0:01:40]}  Bxg3 {[%clk 0:02:06]} 26. Ne2 {[%clk 0:01:34]}  Bxf2+ {[%clk 0:02:04]} 27. Kxf2 {[%clk 0:01:28]}  Rxd1 {[%clk 0:02:02]} 28. Nxc3 {[%clk 0:01:23]}  Rd3 {[%clk 0:01:59]} 29. Ne4 {[%clk 0:01:21]}  Rxh3 {[%clk 0:01:58]} 30. Kg2 {[%clk 0:01:08]}  Re3 {[%clk 0:01:58]} 31. Nf6+ {[%clk 0:01:07]}  Kg7 {[%clk 0:01:57]} 32. Nd5 {[%clk 0:01:06]}  Re6 {[%clk 0:01:52]} 33. Rf2 {[%clk 0:01:03]}  h5 {[%clk 0:01:50]} 34. Rc2 {[%clk 0:01:00]}  g5 {[%clk 0:01:48]} 35. Nc7 {[%clk 0:01:00]}  Rd6 {[%clk 0:01:41]} 36. Nxa6 {[%clk 0:01:00]}  f5 {[%clk 0:01:40]} 37. Nb4 {[%clk 0:01:00]}  Rd4 {[%clk 0:01:37]} 38. Rc4 {[%clk 0:00:48]}  Rd2+ {[%clk 0:01:35]} 39. Kf3 {[%clk 0:00:48]}  h4 {[%clk 0:01:29]} 40. Rc2 {[%clk 0:00:40]}  Rd4 {[%clk 0:01:27]} 41. Nc6 {[%clk 0:00:31]}  Rd3+ {[%clk 0:01:26]} 42. Ke2 {[%clk 0:00:29]}  Rg3 {[%clk 0:01:23]} 43. Nd4 {[%clk 0:00:29]}  Kf6 {[%clk 0:01:20]} 44. Rc6+ {[%clk 0:00:25]}  Ke5 {[%clk 0:01:20]} 45. Nf3+ {[%clk 0:00:25]}  Ke4 {[%clk 0:01:18]} 46. Rc4+ {[%clk 0:00:18]}  Kd5 {[%clk 0:01:18]} 47. Rd4+ {[%clk 0:00:18]}  Ke6 {[%clk 0:01:14]} 48. Rb4 {[%clk 0:00:17]}  h3 {[%clk 0:01:13]} 49. Rxb6+ {[%clk 0:00:17]}  Kd5 {[%clk 0:01:13]} 50. Rh6 {[%clk 0:00:18]}  g4 {[%clk 0:01:13]} 51. Ng5 {[%clk 0:00:18]}  Ke5 {[%clk 0:01:12]} 52. Re6+ {[%clk 0:00:17]}  Kf4 {[%clk 0:01:12]} 53. Rg6 {[%clk 0:00:16]}  Rg2+ {[%clk 0:01:11]} 54. Kf1 {[%clk 0:00:15]}  Rxa2 {[%clk 0:01:11]} 55. Ne6+ {[%clk 0:00:16]}  Ke3 {[%clk 0:01:09]} 56. Rh6 {[%clk 0:00:16]}  h2 {[%clk 0:01:09]} 57. Ng5 {[%clk 0:00:16]}  g3 {[%clk 0:01:09]} 58. Re6+ {[%clk 0:00:15]}  Kf4 {[%clk 0:01:08]} 59. Nh3+ {[%clk 0:00:15]}  Kg4 {[%clk 0:01:09]} 60. Nf2+ {[%clk 0:00:13]}  Rxf2+ {[%clk 0:01:08]} 61. Ke1 {[%clk 0:00:14]}  h1=Q# {[%clk 0:01:09]} 0-1


[Site "https://www.chess.com"]

[Event "Titled Tuesday Blitz July 4 Late 2023"]
[White "Jeet, Jain"]
[Black "Toolin, Christopher"]
[WhiteFideId "5073022"]
[BlackFideId "2024543"]
[WhiteElo "2650"]
[BlackElo "2377"]
[Result "1-0"]
[Round "1"]
[TimeControl "180+2"]
[Date "2023.07.04"]
[WhiteClock "0:00:11"]
[BlackClock "0:00:00"]
[Board "97"]

1. d4 {[%clk 0:03:00]}  Nf6 {[%clk 0:02:57]} 2. c4 {[%clk 0:02:59]}  e6 {[%clk 0:02:58]} 3. Nf3 {[%clk 0:02:58]}  d5 {[%clk 0:02:58]} 4. Nc3 {[%clk 0:02:57]}  Bb4 {[%clk 0:02:57]} 5. Bg5 {[%clk 0:02:54]}  c5 {[%clk 0:02:53]} 6. e3 {[%clk 0:02:49]}  Nbd7 {[%clk 0:02:52]} 7. a3 {[%clk 0:02:47]}  Bxc3+ {[%clk 0:02:50]} 8. bxc3 {[%clk 0:02:48]}  Qa5 {[%clk 0:02:50]} 9. Qc2 {[%clk 0:02:40]}  Ne4 {[%clk 0:02:49]} 10. Bd3 {[%clk 0:02:36]}  Qxc3+ {[%clk 0:02:30]} 11. Qxc3 {[%clk 0:02:35]}  Nxc3 {[%clk 0:02:31]} 12. Rc1 {[%clk 0:02:30]}  Ne4 {[%clk 0:02:22]} 13. Bxe4 {[%clk 0:02:17]}  dxe4 {[%clk 0:02:23]} 14. Nd2 {[%clk 0:02:17]}  f5 {[%clk 0:02:13]} 15. O-O {[%clk 0:02:14]}  O-O {[%clk 0:02:05]} 16. Be7 {[%clk 0:02:07]}  Rf7 {[%clk 0:02:02]} 17. Bxc5 {[%clk 0:02:07]}  Nxc5 {[%clk 0:01:59]} 18. dxc5 {[%clk 0:02:08]}  Rc7 {[%clk 0:01:59]} 19. Nb3 {[%clk 0:02:08]}  b6 {[%clk 0:01:44]} 20. Rfd1 {[%clk 0:01:57]}  bxc5 {[%clk 0:01:42]} 21. Rd8+ {[%clk 0:01:57]}  Kf7 {[%clk 0:01:42]} 22. Na5 {[%clk 0:01:57]}  Ke7 {[%clk 0:01:33]} 23. Rcd1 {[%clk 0:01:56]}  Rb8 {[%clk 0:01:20]} 24. h4 {[%clk 0:01:53]}  Rb2 {[%clk 0:01:16]} 25. Rh8 {[%clk 0:01:52]}  h6 {[%clk 0:01:14]} 26. Rdd8 {[%clk 0:01:51]}  Bd7 {[%clk 0:01:06]} 27. Rdg8 {[%clk 0:01:43]}  Kf7 {[%clk 0:01:05]} 28. h5 {[%clk 0:01:42]}  Ra2 {[%clk 0:01:01]} 29. Nb3 {[%clk 0:01:38]}  Rxa3 {[%clk 0:01:00]} 30. Nd2 {[%clk 0:01:38]}  Rd3 {[%clk 0:00:59]} 31. Nf1 {[%clk 0:01:38]}  a5 {[%clk 0:00:58]} 32. Ra8 {[%clk 0:01:37]}  Rb7 {[%clk 0:00:52]} 33. Ng3 {[%clk 0:01:34]}  a4 {[%clk 0:00:49]} 34. Ne2 {[%clk 0:01:31]}  e5 {[%clk 0:00:46]} 35. g4 {[%clk 0:01:30]}  a3 {[%clk 0:00:43]} 36. gxf5 {[%clk 0:01:29]}  Rd2 {[%clk 0:00:35]} 37. Ng3 {[%clk 0:01:27]}  a2 {[%clk 0:00:35]} 38. Kg2 {[%clk 0:01:16]}  Rb1 {[%clk 0:00:29]} 39. f6 {[%clk 0:01:09]}  gxf6 {[%clk 0:00:25]} 40. Nxe4 {[%clk 0:01:05]}  Bc6 {[%clk 0:00:17]} 41. Rh7+ {[%clk 0:00:46]}  Ke6 {[%clk 0:00:17]} 42. Ra6 {[%clk 0:00:47]}  a1=Q {[%clk 0:00:13]} 43. Rxc6+ {[%clk 0:00:47]}  Kf5 {[%clk 0:00:13]} 44. Ng3+ {[%clk 0:00:45]}  Kg5 {[%clk 0:00:09]} 45. Rg7+ {[%clk 0:00:40]}  Kh4 {[%clk 0:00:09]} 46. Nf5+ {[%clk 0:00:38]}  Kxh5 {[%clk 0:00:09]} 47. Ng3+ {[%clk 0:00:34]}  Kh4 {[%clk 0:00:10]} 48. Kf3 {[%clk 0:00:20]}  e4+ {[%clk 0:00:06]} 49. Nxe4 {[%clk 0:00:16]}  Qe5 {[%clk 0:00:04]} 50. Rg4+ {[%clk 0:00:13]}  Kh3 {[%clk 0:00:00]} 51. Rxf6 {[%clk 0:00:11]} 1-0


[Site "https://www.chess.com"]

[Event "Titled Tuesday Blitz July 4 Late 2023"]
[White "Slovineanu, Viacheslav"]
[Black "Popilski, Gil"]
[WhiteFideId "13900510"]
[BlackFideId "2809060"]
[WhiteElo "2369"]
[BlackElo "2635"]
[Result "0-1"]
[Round "1"]
[TimeControl "180+2"]
[Date "2023.07.04"]
[WhiteClock "0:00:00"]
[BlackClock "0:01:14"]
[Board "100"]

1. d4 {[%clk 0:03:00]}  Nf6 {[%clk 0:02:58]} 2. Nf3 {[%clk 0:02:57]}  b5 {[%clk 0:02:57]} 3. a4 {[%clk 0:02:53]}  b4 {[%clk 0:02:56]} 4. c4 {[%clk 0:02:53]}  c5 {[%clk 0:02:47]} 5. dxc5 {[%clk 0:02:48]}  Na6 {[%clk 0:02:47]} 6. Bg5 {[%clk 0:02:47]}  Nxc5 {[%clk 0:02:36]} 7. Bxf6 {[%clk 0:02:43]}  exf6 {[%clk 0:02:37]} 8. e3 {[%clk 0:02:35]}  Bb7 {[%clk 0:02:35]} 9. Nbd2 {[%clk 0:02:32]}  b3 {[%clk 0:02:09]} 10. Be2 {[%clk 0:02:12]}  Rb8 {[%clk 0:02:08]} 11. O-O {[%clk 0:02:08]}  Be7 {[%clk 0:02:07]} 12. Nd4 {[%clk 0:02:05]}  O-O {[%clk 0:02:00]} 13. a5 {[%clk 0:01:50]}  g6 {[%clk 0:01:57]} 14. N2xb3 {[%clk 0:01:45]}  Nxb3 {[%clk 0:01:51]} 15. Nxb3 {[%clk 0:01:45]}  Ba8 {[%clk 0:01:51]} 16. Qc2 {[%clk 0:01:38]}  Qc7 {[%clk 0:01:48]} 17. Nd4 {[%clk 0:01:34]}  Qb7 {[%clk 0:01:44]} 18. Bf3 {[%clk 0:01:25]}  Qxb2 {[%clk 0:01:43]} 19. Bxa8 {[%clk 0:01:25]}  Qxc2 {[%clk 0:01:42]} 20. Nxc2 {[%clk 0:01:26]}  Rxa8 {[%clk 0:01:43]} 21. Rfd1 {[%clk 0:01:18]}  Rfd8 {[%clk 0:01:42]} 22. Rab1 {[%clk 0:01:02]}  Rac8 {[%clk 0:01:41]} 23. Rd4 {[%clk 0:00:41]}  d5 {[%clk 0:01:35]} 24. Rb7 {[%clk 0:00:37]}  Kf8 {[%clk 0:01:34]} 25. Kf1 {[%clk 0:00:10]}  Rxc4 {[%clk 0:01:28]} 26. Rxc4 {[%clk 0:00:10]}  dxc4 {[%clk 0:01:29]} 27. Ke2 {[%clk 0:00:09]}  c3 {[%clk 0:01:25]} 28. Nd4 {[%clk 0:00:08]}  Bc5 {[%clk 0:01:25]} 29. Kd3 {[%clk 0:00:04]}  Rc8 {[%clk 0:01:21]} 30. a6 {[%clk 0:00:03]}  Bb6 {[%clk 0:01:21]} 31. Kc2 {[%clk 0:00:02]}  Rc5 {[%clk 0:01:16]} 32. Nb3 {[%clk 0:00:02]}  Rc6 {[%clk 0:01:14]} 33. Nd4 {[%clk 0:00:02]}  Bxd4 {[%clk 0:01:14]} 34. exd4 {[%clk 0:00:02]}  Rxa6 {[%clk 0:01:15]} 35. Kxc3 {[%clk 0:00:01]}  Ra2 {[%clk 0:01:15]} 36. d5 {[%clk 0:00:00]}  Rxf2 {[%clk 0:01:14]} 0-1


[Site "https://www.chess.com"]

[Event "Titled Tuesday Blitz July 4 Late 2023"]
[White "Ganiev, Roman"]
[Black "Cooklev, Steven"]
[WhiteFideId "4131452"]
[BlackFideId "2050552"]
[WhiteElo "2634"]
[BlackElo "2368"]
[Result "1-0"]
[Round "1"]
[TimeControl "180+2"]
[Date "2023.07.04"]
[WhiteClock "0:00:56"]
[BlackClock "0:00:00"]
[Board "101"]

1. e4 {[%clk 0:03:00]}  c5 {[%clk 0:02:59]} 2. Nf3 {[%clk 0:03:00]}  Nc6 {[%clk 0:02:59]} 3. Bb5 {[%clk 0:02:59]}  Nf6 {[%clk 0:02:59]} 4. e5 {[%clk 0:02:58]}  Nd5 {[%clk 0:02:59]} 5. Nc3 {[%clk 0:02:59]}  Nc7 {[%clk 0:02:59]} 6. Bxc6 {[%clk 0:02:58]}  dxc6 {[%clk 0:02:59]} 7. O-O {[%clk 0:02:59]}  h6 {[%clk 0:02:58]} 8. h3 {[%clk 0:03:00]}  g5 {[%clk 0:02:58]} 9. Re1 {[%clk 0:02:59]}  g4 {[%clk 0:02:57]} 10. hxg4 {[%clk 0:02:54]}  Bxg4 {[%clk 0:02:57]} 11. Ne4 {[%clk 0:02:54]}  Ne6 {[%clk 0:02:40]} 12. c3 {[%clk 0:02:43]}  c4 {[%clk 0:02:33]} 13. b3 {[%clk 0:02:41]}  Ng5 {[%clk 0:02:05]} 14. Nexg5 {[%clk 0:02:31]}  hxg5 {[%clk 0:02:05]} 15. Qe2 {[%clk 0:02:25]}  Qd5 {[%clk 0:01:49]} 16. Qe4 {[%clk 0:02:15]}  Qe6 {[%clk 0:01:40]} 17. Nd4 {[%clk 0:02:02]}  Qh6 {[%clk 0:01:38]} 18. f3 {[%clk 0:02:02]}  Qh2+ {[%clk 0:00:59]} 19. Kf1 {[%clk 0:01:43]}  Bh5 {[%clk 0:00:58]} 20. e6 {[%clk 0:01:30]}  Bg6 {[%clk 0:00:12]} 21. exf7+ {[%clk 0:01:30]}  Kxf7 {[%clk 0:00:13]} 22. Qe6+ {[%clk 0:01:30]}  Kg7 {[%clk 0:00:14]} 23. Nf5+ {[%clk 0:01:30]}  Kh7 {[%clk 0:00:13]} 24. bxc4 {[%clk 0:01:20]}  g4 {[%clk 0:00:10]} 25. fxg4 {[%clk 0:01:06]}  Qf4+ {[%clk 0:00:07]} 26. Kg1 {[%clk 0:01:02]}  Qxg4 {[%clk 0:00:00]} 27. Nxe7 {[%clk 0:00:56]} 1-0


[Site "https://www.chess.com"]

[Event "Titled Tuesday Blitz July 4 Late 2023"]
[White "financieru"]
[Black "Martinez Ramirez, Lennis"]
[BlackFideId "3509079"]
[WhiteElo "2368"]
[BlackElo "2632"]
[Result "1-0"]
[Round "1"]
[TimeControl "180+2"]
[Date "2023.07.04"]
[WhiteClock "0:00:27"]
[BlackClock "0:00:08"]
[Board "102"]

1. d4 {[%clk 0:03:00]}  Nf6 {[%clk 0:02:57]} 2. c4 {[%clk 0:03:01]}  e6 {[%clk 0:02:55]} 3. Nc3 {[%clk 0:03:01]}  Bb4 {[%clk 0:02:46]} 4. f3 {[%clk 0:03:02]}  d5 {[%clk 0:02:35]} 5. a3 {[%clk 0:03:01]}  Bxc3+ {[%clk 0:02:32]} 6. bxc3 {[%clk 0:03:02]}  O-O {[%clk 0:02:30]} 7. e3 {[%clk 0:03:02]}  c5 {[%clk 0:02:26]} 8. cxd5 {[%clk 0:03:02]}  exd5 {[%clk 0:02:22]} 9. Bd3 {[%clk 0:03:01]}  Re8 {[%clk 0:02:08]} 10. Ne2 {[%clk 0:03:01]}  b6 {[%clk 0:02:00]} 11. O-O {[%clk 0:03:00]}  Ba6 {[%clk 0:01:59]} 12. Bxa6 {[%clk 0:03:01]}  Nxa6 {[%clk 0:01:59]} 13. g4 {[%clk 0:02:59]}  h5 {[%clk 0:01:51]} 14. h3 {[%clk 0:02:35]}  Nc7 {[%clk 0:01:27]} 15. Ng3 {[%clk 0:02:28]}  hxg4 {[%clk 0:00:45]} 16. hxg4 {[%clk 0:02:28]}  g6 {[%clk 0:00:45]} 17. Ra2 {[%clk 0:02:23]}  Ne6 {[%clk 0:00:44]} 18. Rh2 {[%clk 0:01:50]}  Qd6 {[%clk 0:00:42]} 19. Kg2 {[%clk 0:01:50]}  Kg7 {[%clk 0:00:41]} 20. e4 {[%clk 0:01:21]}  dxe4 {[%clk 0:00:33]} 21. g5 {[%clk 0:01:21]}  Nh5 {[%clk 0:00:30]} 22. Rxh5 {[%clk 0:01:12]}  e3 {[%clk 0:00:29]} 23. Bxe3 {[%clk 0:01:03]}  Rad8 {[%clk 0:00:27]} 24. Rfh1 {[%clk 0:00:58]}  Kf8 {[%clk 0:00:27]} 25. Rh8+ {[%clk 0:00:54]}  Ke7 {[%clk 0:00:27]} 26. Rxe8+ {[%clk 0:00:55]}  Rxe8 {[%clk 0:00:27]} 27. Ne4 {[%clk 0:00:52]}  Qd5 {[%clk 0:00:26]} 28. dxc5 {[%clk 0:00:47]}  Qa2+ {[%clk 0:00:20]} 29. Qd2 {[%clk 0:00:41]}  Qxd2+ {[%clk 0:00:19]} 30. Bxd2 {[%clk 0:00:42]}  bxc5 {[%clk 0:00:20]} 31. Be3 {[%clk 0:00:42]}  Rc8 {[%clk 0:00:20]} 32. Rb1 {[%clk 0:00:43]}  Rc7 {[%clk 0:00:21]} 33. Rb5 {[%clk 0:00:43]}  c4 {[%clk 0:00:20]} 34. Ra5 {[%clk 0:00:43]}  Rc6 {[%clk 0:00:11]} 35. Rxa7+ {[%clk 0:00:42]}  Kf8 {[%clk 0:00:12]} 36. a4 {[%clk 0:00:39]}  Nc7 {[%clk 0:00:09]} 37. Bc5+ {[%clk 0:00:33]}  Kg7 {[%clk 0:00:08]} 38. Bd4+ {[%clk 0:00:34]}  Kf8 {[%clk 0:00:07]} 39. a5 {[%clk 0:00:34]}  Ke7 {[%clk 0:00:07]} 40. Be5 {[%clk 0:00:30]}  Ke6 {[%clk 0:00:07]} 41. Bxc7 {[%clk 0:00:29]}  Ra6 {[%clk 0:00:08]} 42. Rxa6+ {[%clk 0:00:28]}  Kf5 {[%clk 0:00:08]} 43. Rf6# {[%clk 0:00:27]} 1-0


[Site "https://www.chess.com"]